fUST/lending_fUST_20251027
["ID","MTS","AMOUNT","RATE_DAILY","PERIOD"]
[392463884,1761516636241,-500.0,0.00016394,2]
[392463885,1761516636251,-500.0,0.00016394,2]
[392463886,1761516636261,-500.0,0.00016394,2]
[392463887,1761516636270,-500.0,0.00016394,2]
[392463888,1761516636279,-500.0,0.00016394,2]
[392463889,1761516636290,-500.0,0.00016394,2]
[392463890,1761516636300,-221.62432597,0.00016394,2]
[392463891,1761516636309,-500.0,0.00016394,2]
[392463892,1761516636318,-500.0,0.00016394,2]
[392463893,1761516636328,-500.0,0.00016394,2]
[392463894,1761516636337,-500.0,0.00016394,2]
[392463895,1761516636347,-500.0,0.00016394,2]
[392463896,1761516636356,-500.0,0.00016394,2]
[392463897,1761516636366,-500.0,0.00016394,2]
[392463898,1761516636376,-500.0,0.00016394,2]
[392463899,1761516636386,-500.0,0.00016394,2]
[392463900,1761516636395,-500.0,0.00016394,2]
[392463901,1761516636404,-500.0,0.00016394,2]
[392463902,1761516636413,-500.0,0.00016394,2]
[392463903,1761516636422,-500.0,0.00016394,2]
[392463904,1761516636434,-500.0,0.00016394,2]
[392463905,1761516636444,-500.0,0.000164,2]
[392463906,1761516636454,-647.51133077,0.000164,2]
[392463907,1761516636463,-500.0,0.000164,2]
[392463908,1761516636472,-500.0,0.00016404,2]
[392463909,1761516636482,-500.0,0.00016404,2]
[392463910,1761516636492,-536.94892392,0.00016406,2]
[392463911,1761516636501,-151.0,0.00016438,2]
[392463912,1761516636512,-151.0,0.00016438,2]
[392463913,1761516636521,-593.6513305,0.00016518,2]
[392463914,1761516636530,-590.6573528,0.000166,2]
[392463915,1761516636539,-590.6573528,0.000167,2]
[392463916,1761516636549,-500.0,0.0001673,2]
[392463917,1761516636557,-500.0,0.0001673,2]
[392463918,1761516636567,-192.34706233,0.0001673,2]
[392463919,1761516636576,-259.49898393,0.0001673,2]
[392463920,1761516636585,-300.0,0.00016731,2]
[392463921,1761516636594,-300.0,0.00016731,2]
[392463922,1761516636603,-300.0,0.00016731,2]
[392463923,1761516636613,-300.0,0.00016731,2]
[392463924,1761516636622,-300.0,0.00016731,2]
[392463925,1761516636631,-300.0,0.00016731,2]
[392463926,1761516636640,-300.0,0.00016731,2]
[392463927,1761516636649,-300.0,0.00016731,2]
[392463928,1761516636659,-300.0,0.00016731,2]
[392463929,1761516636668,-300.0,0.00016731,2]
[392463930,1761516636677,-300.0,0.00016731,2]
[392463931,1761516636686,-300.0,0.00016731,2]
[392463932,1761516636696,-300.0,0.00016731,2]
[392463933,1761516636705,-300.0,0.00016731,2]
[392463934,1761516636715,-300.0,0.00016731,2]
[392463935,1761516636724,-600.0,0.00016731,2]
[392463936,1761516636734,-286.82345528,0.00016999,2]
[392463937,1761516636743,-420.0,0.00017255,2]
[392463938,1761516636752,-586.90022,0.00017278,2]
[392463939,1761516636762,-554.0,0.00017342,2]
[392463940,1761516636774,-151.0,0.00017598,2]
[392463941,1761516636784,-151.0,0.00017598,2]
[392463942,1761516636793,-151.0,0.00017598,2]
[392463943,1761516636802,-151.0,0.00017598,2]
[392463944,1761516636811,-151.0,0.00017598,2]
[392463945,1761516636821,-151.0,0.00017598,2]
[392463946,1761516636830,-151.0,0.00017598,2]
[392463947,1761516636839,-151.0,0.00017598,2]
[392463948,1761516636848,-201.87452586,0.00017598,2]
[392463949,1761516636858,-151.0,0.00017598,2]
[392463950,1761516636867,-152.96043574,0.00017598,2]
[392463951,1761516636876,-1000.0,0.00017598,2]
[392463952,1761516636885,-1000.0,0.00017598,2]
[392463953,1761516636895,-1000.0,0.00017598,2]
[392463954,1761516636903,-1000.0,0.00017598,2]
[392463955,1761516636913,-1000.0,0.00017598,2]
[392463956,1761516636922,-187.58760619,0.00017598,2]
[392463957,1761516636931,-406.89,0.00018133,2]
[392463958,1761516636941,-579.41127872,0.00018233,2]
[392463959,1761516636952,-500.0,0.00018233,2]
[392463960,1761516636962,-162.2998523,0.00018233,2]
[392463961,1761516636972,-299.0141461,0.00018233,2]
[392463962,1761516636982,-163.4939006,0.00018233,2]
[392463963,1761516636992,-590.6573528,0.00018233,2]
[392463964,1761516637002,-163.4939006,0.00018233,2]
[392463965,1761516637012,-299.0141461,0.00018233,2]
[392463966,1761516637023,-590.6573528,0.00018233,2]
[392463967,1761516637032,-159.6139201,0.00018233,2]
[392463968,1761516637042,-292.1047543,0.00018233,2]
[392463969,1761516637051,-590.6573528,0.00018233,2]
[392463970,1761516637061,-573.5455648,0.00018233,2]
[392463971,1761516637071,-593.6513305,0.0001829,2]
[392463972,1761516637081,-720.0,0.00018404,2]
[392463973,1761516637090,-1505.34109051,0.00018493,2]
[392463974,1761516637100,-160.0,0.00018496,2]
[392463976,1761516637110,-160.0,0.00018496,2]
[392463977,1761516637120,-160.0,0.00018497,2]
[392463978,1761516637129,-403.49456409,0.00018497,2]
[392463980,1761516637139,-1783.87258802,0.000185,2]
[392463981,1761516637149,-305.84489178,0.000185,2]
[392463982,1761516637158,-264.32418158,0.000185,2]
[392463984,1761516637167,-177.4108125,0.000185,2]
[392463986,1761516637176,-763.0,0.000185,2]
[392463988,1761516637186,-1783.87258802,0.000187,2]
[392463989,1761516637195,-305.84489178,0.000187,2]
[392463991,1761516637207,-264.32418158,0.000187,2]
[392463992,1761516637217,-177.4108125,0.000187,2]
[392463994,1761516637226,-218.09,0.00018762,2]
[392463996,1761516637236,-1783.87258802,0.000188,2]
[392463998,1761516637245,-587.0,0.0001887,2]
[392464000,1761516637255,-401.14510133,0.00018873,2]
[392464001,1761516637264,-312.62746002,0.00018873,2]
[392464002,1761516637273,-305.84489178,0.000189,2]
[392464004,1761516637282,-264.32418158,0.000189,2]
[392464006,1761516637292,-177.4108125,0.000189,2]
[392464007,1761516637302,-453.22,0.00018945,3]
[392464008,1761516637311,-2075.98,0.00018945,3]
[392464009,1761516637320,-1037.99,0.00018945,3]
[392464010,1761516637329,-518.99,0.00018945,3]
[392464011,1761516637339,-259.5,0.00018945,3]
[392464012,1761516637348,-778.52,0.00018945,3]
[392464013,1761516637357,-311.46642737,0.00018955,2]
[392464014,1761516637366,-66528.20444388,0.00018955,2]
[392464015,1761516637379,-3458.50887465,0.00018955,2]
[392464033,1761516637595,-190.95053433,0.00017863,2]
[392464035,1761516637604,-316.66782567,0.00018955,2]
[392464039,1761516637634,-5000.04050308,0.00018955,2]
[392464041,1761516637645,-16095.97613246,0.00018955,2]
[392464043,1761516637656,-1698.0346799,0.00018955,2]
[392464046,1761516637667,-302.0,0.00018955,2]
[392464289,1761516643386,-190.95053433,0.00017684,2]
[392464291,1761516643396,-23782.10230458,0.00018955,2]
[392464294,1761516643408,-252818.46523578,0.00018955,2]
[392464296,1761516643418,-500.0,0.00018973,2]
[392464298,1761516643429,-500.0,0.00018973,2]
[392464300,1761516643442,-500.0,0.00018973,2]
[392464302,1761516643451,-500.0,0.00018973,2]
[392464304,1761516643463,-500.0,0.00018973,2]
[392464306,1761516643472,-500.0,0.00018973,2]
[392464308,1761516643481,-500.0,0.00018973,2]
[392464310,1761516643491,-500.0,0.00018973,2]
[392464312,1761516643500,-500.0,0.00018973,2]
[392464314,1761516643510,-500.0,0.00018973,2]
[392464316,1761516643519,-500.29893777,0.00018973,2]
[392464318,1761516643528,-500.0,0.00018973,2]
[392464320,1761516643538,-501.94085089,0.00018973,2]
[392464323,1761516643548,-500.0,0.00018973,2]
[392464325,1761516643557,-500.0,0.00018973,2]
[392464327,1761516643567,-501.64315091,0.00018973,2]
[392464329,1761516643577,-592.53567952,0.00019,2]
[392464331,1761516643587,-1783.87258802,0.00019,2]
[392464333,1761516643596,-160.0,0.00019018,2]
[392464335,1761516643605,-500.0,0.00019073,2]
[392464337,1761516643615,-500.0,0.00019073,2]
[392464339,1761516643624,-305.84489178,0.000191,2]
[392464341,1761516643633,-264.32418158,0.000191,2]
[392464343,1761516643642,-2500.0,0.0001912,2]
[392464345,1761516643651,-288.01473339,0.00019169,2]
[392464347,1761516643660,-151.0,0.00019178,2]
[392464349,1761516643669,-151.0,0.00019178,2]
[392464351,1761516643679,-151.0,0.00019178,2]
[392464352,1761516643688,-151.0,0.00019178,2]
[392464355,1761516643698,-151.0,0.00019178,2]
[392464356,1761516643708,-266.184451,0.00019178,2]
[392464358,1761516643717,-151.0,0.00019178,2]
[392464360,1761516643727,-151.0,0.00019178,2]
[392464362,1761516643736,-151.0,0.00019178,2]
[392464365,1761516643745,-151.0,0.00019178,2]
[392464367,1761516643754,-151.0,0.00019178,2]
[392464369,1761516643764,-151.0,0.00019178,2]
[392464371,1761516643773,-151.0,0.00019178,2]
[392464373,1761516643782,-151.0,0.00019178,2]
[392464375,1761516643791,-151.0,0.00019178,2]
[392464377,1761516643800,-151.0,0.00019178,2]
[392464378,1761516643809,-151.0,0.00019178,2]
[392464380,1761516643818,-301.999999,0.00019178,2]
[392464382,1761516643827,-151.0,0.00019178,2]
[392464384,1761516643836,-151.0,0.00019178,2]
[392464386,1761516643845,-151.0,0.00019178,2]
[392464388,1761516643855,-151.0,0.00019178,2]
[392464390,1761516643864,-151.0,0.00019178,2]
[392464392,1761516643873,-151.0,0.00019178,2]
[392464394,1761516643882,-151.0,0.00019178,2]
[392464396,1761516643891,-151.0,0.00019178,2]
[392464398,1761516643901,-151.0,0.00019178,2]
[392464400,1761516643911,-151.0,0.00019178,2]
[392464402,1761516643920,-151.0,0.00019178,2]
[392464404,1761516643929,-151.0,0.00019178,2]
[392464407,1761516643939,-212.126842,0.00019178,2]
[392464408,1761516643948,-151.0,0.00019178,2]
[392464411,1761516643958,-151.0,0.00019178,2]
[392464413,1761516643968,-151.0,0.00019178,2]
[392464415,1761516643977,-155.194298,0.00019178,2]
[392464417,1761516643988,-151.0,0.00019178,2]
[392464419,1761516643997,-151.0,0.00019178,2]
[392464421,1761516644007,-151.0,0.00019178,2]
[392464423,1761516644016,-151.0,0.00019178,2]
[392464425,1761516644025,-151.0,0.00019178,2]
[392464427,1761516644035,-151.0,0.00019178,2]
[392464429,1761516644044,-251.617197,0.00019178,2]
[392464431,1761516644054,-151.0,0.00019178,2]
[392464433,1761516644063,-153.365986,0.00019178,2]
[392464435,1761516644073,-151.0,0.00019178,2]
[392464437,1761516644082,-151.0,0.00019178,2]
[392464439,1761516644092,-1783.87258802,0.000192,2]
[392464441,1761516644102,-305.84489178,0.000192,2]
[392464443,1761516644111,-264.32418158,0.000192,2]
[392464445,1761516644120,-168.0,0.00019224,2]
[392464447,1761516644131,-300.0,0.00019315,2]
[392464449,1761516644140,-454.68811614,0.00019452,2]
[392464451,1761516644150,-98588.13649043,0.000195,2]
[392464453,1761516644159,-1000.0,0.000195,2]
[392464455,1761516644169,-1000.0,0.00019521,2]
[392464457,1761516644178,-1000.0,0.00019521,2]
[392464459,1761516644188,-500.0,0.00019521,2]
[392464461,1761516644198,-1000.0,0.00019521,2]
[392464462,1761516644208,-1000.0,0.00019521,2]
[392464464,1761516644218,-501.86765612,0.00019521,2]
[392464466,1761516644228,-1000.0,0.00019521,2]
[392464468,1761516644237,-1000.0,0.00019521,2]
[392464470,1761516644247,-1000.0,0.00019521,2]
[392464472,1761516644256,-1000.0,0.00019521,2]
[392464474,1761516644266,-1000.0,0.00019521,2]
[392464476,1761516644275,-260.0,0.00019566,2]
[392464478,1761516644285,-168.0,0.0001959,2]
[392464480,1761516644294,-967.04223037,0.00019621,2]
[392464482,1761516644303,-428.7707,0.000198,2]
[392464484,1761516644312,-255.392,0.00019802,2]
[392464486,1761516644322,-984.0,0.00019802,2]
[392464488,1761516644331,-632.0,0.00019802,2]
[392464490,1761516644340,-2166.0,0.00019802,2]
[392464492,1761516644349,-368.07620667,0.0002,2]
[392464494,1761516644359,-320.84782285,0.0002,2]
[392464496,1761516644368,-10341.03855066,0.0002,2]
[392464498,1761516644378,-20214.04008715,0.0002,2]
[392464500,1761516644387,-250.0,0.0002,10]
[392464502,1761516644396,-159.75719053,0.0002,2]
[392464504,1761516644406,-2000.0,0.0002,7]
[392464506,1761516644415,-1000.0,0.0002,2]
[392464508,1761516644424,-401.14510132,0.00020018,2]
[392464510,1761516644435,-593.6513305,0.00020062,2]
[392464512,1761516644446,-1053.36203907,0.00020068,2]
[392464514,1761516644455,-1500.0,0.00020068,2]
[392464515,1761516644464,-1500.0,0.00020068,2]
[392464517,1761516644476,-506.39587196,0.00020068,2]
[392464519,1761516644485,-1500.0,0.00020068,2]
[392464521,1761516644495,-1500.0,0.00020068,2]
[392464524,1761516644505,-375.29920433,0.00020068,2]
[392464526,1761516644515,-1500.0,0.00020068,2]
[392464527,1761516644524,-1500.0,0.00020068,2]
[392464529,1761516644533,-250.0,0.000201,10]
[392464532,1761516644543,-360.0,0.00020114,2]
[392464534,1761516644552,-629.67487,0.00020187,2]
[392464536,1761516644562,-250.0,0.000202,10]
[392464538,1761516644571,-2500.0,0.00020216,2]
[392464540,1761516644580,-864.0,0.00020245,2]
[392464541,1761516644589,-250.0,0.000203,10]
[392464543,1761516644599,-906.44,0.00020315,3]
[392464545,1761516644609,-4151.96,0.00020315,3]
[392464547,1761516644618,-2075.98,0.00020315,3]
[392464549,1761516644627,-1037.98,0.00020315,3]
[392464551,1761516644637,-519.0,0.00020315,3]
[392464553,1761516644646,-250.0,0.000204,10]
[392464555,1761516644656,-402.95763644,0.00020476,2]
[392464557,1761516644665,-250.0,0.000205,10]
[392464559,1761516644675,-151.0,0.00020548,3]
[392464561,1761516644684,-151.0,0.00020548,3]
[392464563,1761516644693,-151.0,0.00020548,3]
[392464565,1761516644703,-151.0,0.00020548,3]
[392464567,1761516644712,-151.0,0.00020548,3]
[392464569,1761516644722,-151.0,0.00020548,3]
[392464587,1761516644731,-151.0,0.00020548,3]
[392464589,1761516644880,-151.0,0.00020548,3]
[392464591,1761516644889,-151.0,0.00020548,3]
[392464593,1761516644899,-151.0,0.00020548,3]
[392464595,1761516644909,-151.0,0.00020548,3]
[392464597,1761516644918,-151.0,0.00020548,3]
[392464599,1761516644928,-151.0,0.00020548,3]
[392464601,1761516644938,-151.0,0.00020548,3]
[392464603,1761516644947,-151.0,0.00020548,3]
[392464605,1761516644958,-151.0,0.00020548,3]
[392464607,1761516644969,-235.361182,0.00020548,3]
[392464608,1761516644978,-250.0,0.000206,10]
[392464610,1761516644988,-2000.0,0.00020616,2]
[392464612,1761516644998,-2000.0,0.00020616,2]
[392464614,1761516645008,-2000.0,0.00020616,2]
[392464616,1761516645018,-2000.0,0.00020616,2]
[392464618,1761516645027,-2000.0,0.00020616,2]
[392464620,1761516645037,-391.57040774,0.00020616,2]
[392464622,1761516645047,-823.0,0.00020635,2]
[392464624,1761516645056,-460.0,0.00020662,2]
[392464626,1761516645065,-1505.34109051,0.00020691,2]
[392464628,1761516645075,-250.0,0.000207,10]
[392464630,1761516645084,-500.0,0.00020783,2]
[392464632,1761516645093,-222.387544,0.00020794,2]
[392464634,1761516645103,-153.0,0.00020794,2]
[392464636,1761516645112,-153.0,0.00020794,2]
[392464639,1761516645121,-153.0,0.00020794,2]
[392464641,1761516645130,-153.0,0.00020794,2]
[392464643,1761516645139,-601.2973814,0.00020795,2]
[392464645,1761516645148,-250.0,0.000208,10]
[392464647,1761516645157,-250.0,0.000209,10]
[392464649,1761516645166,-151.0,0.00021,4]
[392464652,1761516645175,-250.0,0.00021,10]
[392464655,1761516645185,-250.0,0.000211,10]
[392464658,1761516645194,-229.89022773,0.00021151,2]
[392464660,1761516645203,-401.14510132,0.00021162,2]
[392464662,1761516645217,-2500.0,0.00021164,2]
[392464664,1761516645227,-989.70273553,0.00021164,2]
[392464665,1761516645236,-2500.0,0.00021164,2]
[392464668,1761516645246,-2500.0,0.00021164,2]
[392464672,1761516645256,-2500.0,0.00021164,2]
[392464675,1761516645266,-168.0,0.00021173,2]
[392464677,1761516645275,-560.0,0.0002121,2]
[392464680,1761516645284,-1288.006398,0.0002126,5]
[392464684,1761516645295,-229.89022773,0.0002126,2]
[392464686,1761516645304,-1000.0,0.0002128,5]
[392464689,1761516645313,-300.0,0.000213,2]
[392464692,1761516645322,-300.0,0.000213,2]
[392464695,1761516645332,-300.0,0.000213,2]
[392464698,1761516645341,-300.0,0.000213,2]
[392464701,1761516645351,-300.0,0.000213,2]
[392464704,1761516645360,-1000.0,0.000213,5]
[392464707,1761516645369,-2500.0,0.00021312,2]
[392464711,1761516645378,-229.89022773,0.0002137,2]
[392464714,1761516645387,-229.89022773,0.00021479,2]
[392464716,1761516645396,-151.0,0.000215,4]
[392464718,1761516645406,-229.89022773,0.00021562,2]
[392464720,1761516645415,-229.89022773,0.00021671,2]
[392464722,1761516645423,-3000.0,0.00021712,2]
[392464724,1761516645436,-3000.0,0.00021712,2]
[392464726,1761516645445,-3000.0,0.00021712,2]
[392464728,1761516645457,-3000.0,0.00021712,2]
[392464730,1761516645466,-168.0,0.00021724,2]
[392464732,1761516645475,-660.0,0.00021757,2]
[392464734,1761516645483,-229.89022773,0.00021781,2]
[392464736,1761516645493,-533.33473052,0.00021782,2]
[392464738,1761516645502,-155.4,0.00021801,2]
[392464740,1761516645512,-593.6513305,0.00021834,2]
[392464742,1761516645522,-312.62746002,0.00021843,2]
[392464744,1761516645531,-500.0,0.00021877,2]
[392464746,1761516645540,-229.89022773,0.0002189,2]
[392464748,1761516645550,-151.0,0.00021918,7]
[392464750,1761516645559,-151.0,0.00021918,7]
[392464752,1761516645569,-151.0,0.00021918,7]
[392464753,1761516645579,-151.0,0.00021918,7]
[392464754,1761516645589,-151.0,0.00021918,7]
[392464755,1761516645599,-158.65253999,0.00021918,2]
[392464756,1761516645609,-176.0,0.00021918,2]
[392464757,1761516645618,-179.33027627,0.00021918,2]
[392464758,1761516645627,-500.0,0.00021918,2]
[392464759,1761516645636,-500.0,0.00021918,2]
[392464760,1761516645646,-500.0,0.00021918,2]
[392464761,1761516645656,-530.71062494,0.00021918,2]
[392464762,1761516645665,-229.89022773,0.00021973,2]
[392464763,1761516645674,-180.0,0.00021978,2]
[392464764,1761516645684,-1206.04,0.00022,6]
[392464765,1761516645693,-32433.11,0.00022,7]
[392464766,1761516645702,-403.49456409,0.00022,7]
[392464767,1761516645714,-151.0,0.00022,4]
[392464768,1761516645724,-229.89022773,0.00022082,2]
[392464770,1761516645734,-229.89022773,0.00022192,2]
[392464772,1761516645743,-3500.0,0.0002226,2]
[392464775,1761516645753,-3500.0,0.0002226,2]
[392464776,1761516645762,-3500.0,0.0002226,2]
[392464779,1761516645771,-3500.0,0.0002226,2]
[392464781,1761516645780,-1000.0,0.00022269,20]
[392464783,1761516645789,-229.89022773,0.00022301,2]
[392464785,1761516645799,-760.0,0.00022305,2]
[392464787,1761516645808,-401.14510132,0.00022307,2]
[392464788,1761516645817,-155.4,0.0002236,2]
[392464790,1761516645826,-180.0,0.0002237,2]
[392464792,1761516645835,-5000.0,0.00022395,2]
[392464794,1761516645844,-2500.0,0.00022408,2]
[392464797,1761516645855,-9001.40501903,0.000225,2]
[392464798,1761516645864,-151.0,0.000225,7]
[392464801,1761516645874,-1152.0,0.00022566,2]
[392464803,1761516645883,-984.0,0.00022802,2]
[392464805,1761516645893,-632.0,0.00022802,2]
[392464807,1761516645902,-2166.0,0.00022802,2]
[392464809,1761516645911,-4000.0,0.00022808,2]
[392464811,1761516645921,-4000.0,0.00022808,2]
[392464813,1761516645931,-4000.0,0.00022808,2]
[392464815,1761516645939,-4000.0,0.00022808,2]
[392464817,1761516645949,-493.955,0.00022838,2]
[392464818,1761516645959,-860.0,0.00022853,2]
[392464821,1761516645968,-1505.34109051,0.00022889,2]
[392464823,1761516645977,-155.4,0.00022918,2]
[392464825,1761516645987,-198.71905899,0.00022989,4]
[392464826,1761516645996,-18907.73991616,0.00023,2]
[392464892,1761516646612,-2794.09128998,0.00023,2]
[392465231,1761516836296,1353.96049248,0.00018262,8]
[392465232,1761516845004,2171.70971192,0.00018262,8]
[392465233,1761517028447,1413.64,0.00015,2]
[392465235,1761517158220,300.0,0.00015,2]
[392465236,1761517168950,300.0,0.00015,2]
[392465237,1761517179639,300.0,0.00015,2]
[392465238,1761517190809,300.0,0.00015,2]
[392465239,1761517201707,300.0,0.00015,2]
[392465240,1761517212553,300.0,0.00015,2]
[392465241,1761517346225,171.0,0.00022647,120]
[392465242,1761517347613,171.0,0.0002378,120]
[392465243,1761517432981,5000.0,0.00018262,8]
[392465255,1761517706930,155.0,0.00018,30]
[392465256,1761517708183,4622.30458443,0.0003,120]
[392465258,1761517719127,653.099996,0.0003,120]
[392465260,1761517721293,400.0,0.0002,30]
[392465263,1761517784525,20159.0,0.00030137,120]
[392465309,1761517831970,-386.87188208,0.0001584,2]
[392465311,1761517831983,-386.87188208,0.00016,2]
[392465313,1761517831996,-1129.0058179,0.00016292,2]
[392465315,1761517832007,-160.0,0.0001638,2]
[392465317,1761517832018,-300.0,0.00016384,2]
[392465319,1761517832035,-300.0,0.00016384,2]
[392465321,1761517832045,-300.0,0.00016384,2]
[392465323,1761517832055,-300.0,0.00016384,2]
[392465325,1761517832064,-300.0,0.00016384,2]
[392465327,1761517832075,-1200.0,0.00016384,2]
[392465329,1761517832085,-1200.0,0.00016385,2]
[392465331,1761517832094,-500.0,0.00016385,2]
[392465333,1761517832103,-650.53336595,0.00016385,2]
[392465335,1761517832113,-500.0,0.00016385,2]
[392465337,1761517832122,-500.0,0.00016385,2]
[392465369,1761517832363,-500.0,0.00016385,2]
[392465373,1761517832388,-500.0,0.00016385,2]
[392465376,1761517832407,-300.0,0.00016385,2]
[392465378,1761517832417,-11486.41192176,0.00016386,2]
[392465380,1761517832426,-500.0,0.00016392,2]
[392465382,1761517832435,-1000.0,0.00016413,2]
[392465384,1761517832444,-300.0,0.00016717,2]
[392465386,1761517832454,-300.0,0.00016717,2]
[392465388,1761517832463,-300.0,0.00016717,2]
[392465389,1761517832472,-300.0,0.00016718,2]
[392465391,1761517832482,-300.0,0.00016718,2]
[392465394,1761517832492,-300.0,0.00016718,2]
[392465395,1761517832501,-300.0,0.00016721,2]
[392465397,1761517832511,-270.0,0.00017906,2]
[392465399,1761517832520,-300.0,0.00017906,2]
[392465401,1761517832529,-420.0,0.00017906,2]
[392465403,1761517832538,-420.0,0.00017906,2]
[392465405,1761517832547,-1485.0,0.00017996,2]
[392465407,1761517832556,-1149.499999,0.00018,2]
[392465409,1761517832565,-249.04435936,0.0001849,2]
[392465418,1761517832647,-879.96145852,0.0001849,2]
[392465420,1761517832657,-126.8563794,0.00018499,2]
[392465636,1761517837931,-350.18612975,0.00015682,2]
[392465638,1761517837940,-115.20895199,0.00018499,2]
[392465640,1761517837950,-1408.44500814,0.000185,2]
[392465642,1761517837959,-203.89659452,0.000185,2]
[392465644,1761517837969,-176.21612105,0.000185,2]
[392465646,1761517837979,-403.49456409,0.00018533,2]
[392465648,1761517837988,-160.0,0.00018533,2]
[392465650,1761517837997,-403.49456409,0.00018533,2]
[392465652,1761517838006,-393.26890446,0.00018573,2]
[392465654,1761517838016,-500.0,0.00018573,2]
[392465655,1761517838029,-500.0,0.00018573,2]
[392465656,1761517838038,-500.0,0.00018573,2]
[392465657,1761517838047,-500.0,0.00018573,2]
[392465658,1761517838057,-500.0,0.00018573,2]
[392465659,1761517838068,-500.0,0.00018573,2]
[392465660,1761517838077,-500.0,0.00018573,2]
[392465661,1761517838086,-49.86889391,0.00018573,2]
[392465697,1761517843139,-3136.0589033,0.00018387,2]
[392465698,1761517843149,-450.43004386,0.00018573,2]
[392465699,1761517843158,-500.0,0.00018573,2]
[392465700,1761517843167,-501.94085089,0.00018573,2]
[392465701,1761517843176,-183.68800855,0.00018573,2]
[392465702,1761517843184,-500.0,0.00018573,2]
[392465703,1761517843193,-500.0,0.00018573,2]
[392465704,1761517843203,-500.0,0.00018573,2]
[392465705,1761517843213,-1000.0,0.00018589,2]
[392465706,1761517843221,-151.0,0.00018589,2]
[392465707,1761517843230,-1000.0,0.00018589,2]
[392465708,1761517843240,-151.0,0.00018589,2]
[392465709,1761517843249,-151.0,0.00018589,2]
[392465710,1761517843258,-1026.06,0.0001859,3]
[392465711,1761517843266,-513.03,0.0001859,3]
[392465712,1761517843275,-256.51,0.0001859,3]
[392465713,1761517843284,-769.58,0.0001859,3]
[392465714,1761517843292,-169.7021934,0.00018599,2]
[392465756,1761518033046,669.038235,0.00013699,2]
[392465759,1761518677300,-155.38477508,0.00015113,2]
[392465760,1761518692344,1250.327144,0.00030137,120]
[392465762,1761518762194,168.77498169,0.00014807,2]
[392465763,1761518764310,161.43634373,0.00014807,2]
[392465766,1761518824515,174.82655034,0.00014962,2]
[392465769,1761518846626,174.82655034,0.00014962,2]
[392465770,1761518854722,174.82655034,0.00014962,2]
[392465771,1761518887208,-331.25147199,0.00015073,2]
[392465861,1761519032523,-334.74852801,0.00015073,2]
[392465864,1761519032533,-666.0,0.00015225,2]
[392465866,1761519032543,-666.0,0.00015379,2]
[392465868,1761519032552,-205.83530187,0.00016275,2]
[392465870,1761519032562,-196.06294952,0.00016374,2]
[392465872,1761519032571,-386.24834549,0.00016374,2]
[392465874,1761519032581,-181.0,0.00016374,2]
[392465876,1761519032592,-300.0,0.00016374,2]
[392465878,1761519032601,-201.0,0.00016374,2]
[392465880,1761519032611,-1200.0,0.00016374,2]
[392465882,1761519032619,-500.0,0.00016377,2]
[392465884,1761519032630,-500.0,0.00016377,2]
[392465886,1761519032640,-579.41127872,0.00016377,2]
[392465888,1761519032649,-647.51133077,0.00016377,2]
[392465890,1761519032658,-500.0,0.00016378,2]